lending/lending_fUSD_20250501
["ID","MTS","AMOUNT","RATE_DAILY","PERIOD"]
[359512366,1746082245898,-15503.15233064,0.000419,120]
[359512367,1746082245907,-1944.84132979,0.00041955,2]
[359512368,1746082245917,-152.0,0.00042,30]
[359512369,1746082245926,-1326.03,0.00042,2]
[359512370,1746082245936,-2674.81,0.00042,120]
[359512371,1746082245945,-159352.0673038,0.00042,10]
[359512372,1746082245954,-1000.0,0.00042,60]
[359512373,1746082245963,-151.0,0.00042,14]
[359512374,1746082245973,-10000.0,0.00042,30]
[359512375,1746082245983,-151.0,0.00042,14]
[359512376,1746082245992,-151.0,0.00042,14]
[359512378,1746082246003,-285.754276,0.00042,14]
[359512379,1746082246016,-10000.0,0.00042,10]
[359512380,1746082246027,-324.438898,0.00042,14]
[359512381,1746082246036,-150.0,0.00042033,30]
[359512382,1746082246045,-150.0,0.00042033,2]
[359512383,1746082246056,-168.611437,0.00042062,60]
[359512384,1746082246066,-215.0,0.0004207,2]
[359512385,1746082246075,-207.0,0.0004207,30]
[359512386,1746082246085,-208.0,0.0004207,2]
[359512387,1746082246097,-152.0,0.00042078,6]
[359512388,1746082246107,-1000.0,0.00042086,14]
[359512389,1746082246116,-299.43261,0.00042095,30]
[359512390,1746082246126,-39380.62,0.000421,60]
[359512391,1746082246135,-166.497068,0.000421,14]
[359512392,1746082246145,-166.497068,0.000421,14]
[359512393,1746082246156,-151.0,0.000421,14]
[359512394,1746082246166,-196.840339,0.000421,14]
[359512395,1746082246175,-262.347889,0.000421,14]
[359512396,1746082246185,-151.0,0.000421,14]
[359512397,1746082246195,-150.0,0.00042113,30]
[359512398,1746082246204,-313.72730905,0.00042113,30]
[359512399,1746082246214,-2000.0,0.0004214,120]
[359512400,1746082246225,-1222.79058328,0.00042155,120]
[359512401,1746082246235,-1202.52150259,0.00042155,120]
[359512402,1746082246244,-1938.80547797,0.00042155,30]
[359512403,1746082246254,-296.478012,0.00042156,14]
[359512404,1746082246263,-244.835755,0.00042156,14]
[359512405,1746082246272,-1254.586319,0.00042156,14]
[359512406,1746082246281,-1254.586319,0.00042156,14]
[359512407,1746082246291,-207.4,0.00042156,10]
[359512408,1746082246299,-215.0738,0.00042156,10]
[359512409,1746082246308,-223.0315306,0.00042156,10]
[359512410,1746082246318,-231.28369723,0.00042156,10]
[359512411,1746082246328,-239.84119403,0.00042156,10]
[359512412,1746082246339,-151.0,0.00042156,10]
[359512413,1746082246348,-151.0,0.00042156,10]
[359512414,1746082246357,-248.71531821,0.00042156,10]
[359512415,1746082246366,-151.0,0.00042156,10]
[359512416,1746082246375,-257.91778498,0.00042156,10]
[359512417,1746082246385,-151.0,0.00042156,10]
[359512418,1746082246396,-267.46074303,0.00042156,10]
[359512419,1746082246405,-151.0,0.00042156,10]
[359512420,1746082246414,-277.35679052,0.00042156,10]
[359512421,1746082246423,-151.0,0.00042156,10]
[359512422,1746082246433,-287.61899177,0.00042156,10]
[359512423,1746082246442,-301.22395042,0.00042156,10]
[359512424,1746082246451,-298.26089446,0.00042156,10]
[359512425,1746082246460,-309.29654756,0.00042156,10]
[359512426,1746082246470,-320.74051982,0.00042156,10]
[359512427,1746082246479,-332.60791905,0.00042156,10]
[359512428,1746082246488,-344.91441206,0.00042156,10]
[359512429,1746082246497,-357.6762453,0.00042156,10]
[359512430,1746082246508,-370.91026638,0.00042156,10]
[359512431,1746082246517,-384.63394623,0.00042156,10]
[359512432,1746082246527,-398.86540225,0.00042156,10]
[359512433,1746082246536,-151.0,0.00042156,14]
[359512434,1746082246545,-150.0,0.00042175,30]
[359512435,1746082246554,-152233.22658013,0.000422,90]
[359512436,1746082246564,-1160.736,0.000422,63]
[359512437,1746082246573,-159.238569,0.000422,14]
[359512438,1746082246582,-160.7731,0.000422,14]
[359512439,1746082246593,-151.0,0.000422,14]
[359512440,1746082246602,-158.256317,0.000422,14]
[359512441,1746082246611,-151.0,0.000422,14]
[359512442,1746082246620,-1948.600049,0.000422,14]
[359512443,1746082246629,-151.0,0.000422,14]
[359512444,1746082246638,-151.0,0.000422,14]
[359512445,1746082246647,-151.0,0.000422,14]
[359512446,1746082246657,-189.629939,0.000422,14]
[359512447,1746082246666,-189.629939,0.000422,14]
[359512448,1746082246675,-151.0,0.000422,14]
[359512449,1746082246685,-151.0,0.000422,14]
[359512450,1746082246694,-163.257342,0.000422,14]
[359512451,1746082246704,-1000.0,0.00042267,14]
[359512452,1746082246714,-299.43261,0.00042295,30]
[359512453,1746082246724,-150.0,0.00042318,30]
[359512454,1746082246734,-1235.21,0.00042362,5]
[359512455,1746082246744,-400.0,0.0004237,3]
[359512456,1746082246758,-700.0,0.0004237,3]
[359512457,1746082246768,-159.0,0.00042379,14]
[359512458,1746082246779,-265.74835313,0.00042379,14]
[359512459,1746082246789,-419.93502132,0.00042379,2]
[359512460,1746082246799,-200.0,0.00042379,7]
[359512461,1746082246807,-200.0,0.00042379,7]
[359512462,1746082246817,-216391.1233022,0.00042423,2]
[359512463,1746082246826,-5679.00695051,0.00042452,46]
[359512464,1746082246836,-150.0,0.0004246,30]
[359512465,1746082246846,-181.17,0.00042465,120]
[359512466,1746082246855,-188.82,0.0004248,120]
[359512467,1746082246865,-150.5,0.0004249,120]
[359512468,1746082246874,-299.43261,0.00042495,30]
[359512469,1746082246884,-290.28271287,0.000425,120]
[359512470,1746082246893,-1000.0,0.00042511,14]
[359512471,1746082246903,-150.0,0.00042603,30]
[359512472,1746082246912,-170.3147408,0.0004261,120]
[359512473,1746082246922,-168.611437,0.00042692,60]
[359512474,1746082246931,-299.43261,0.00042695,30]
[359512475,1746082246940,-160.0,0.000427,69]
[359512476,1746082246950,-5690.15,0.000427,14]
[359512477,1746082246959,-150.0,0.00042745,30]
[359512478,1746082246969,-200.0,0.00042803,7]
[359512479,1746082246980,-200.0,0.00042803,7]
[359512480,1746082246989,-150.0,0.00042826,2]
[359512481,1746082246999,-166.66,0.00042829,2]
[359512482,1746082247015,-500.0,0.00042855,60]
[359512483,1746082247024,-500.0,0.00042855,60]
[359512484,1746082247034,-17591.84039721,0.0004288,120]
[359512485,1746082247048,-150.0,0.00042888,30]
[359512486,1746082247059,-299.43261,0.00042895,30]
[359512487,1746082247069,-2514.23,0.000429,14]
[359512488,1746082247078,-157.2364078,0.00042959,2]
[359512489,1746082247089,-445.51,0.00043,120]
[359512490,1746082247098,-394.41,0.00043,120]
[359512491,1746082247107,-860.59,0.00043,120]
[359512492,1746082247117,-214.0,0.00043,7]
[359512493,1746082247127,-152.0,0.00043,30]
[359512494,1746082247136,-1326.03,0.00043,2]
[359512495,1746082247146,-199.59857846,0.00043,120]
[359512496,1746082247155,-1002.8781528,0.00043,44]
[359512497,1746082247165,-10000.0,0.00043,30]
[359512498,1746082247174,-900.0,0.00043,2]
[359512499,1746082247184,-401.17,0.00043,33]
[359512500,1746082247193,-401.17,0.00043,33]
[359512501,1746082247203,-401.17,0.00043,33]
[359512502,1746082247213,-401.17,0.00043,33]
[359512503,1746082247222,-401.17,0.00043,33]
[359512504,1746082247231,-401.17,0.00043,33]
[359512505,1746082247241,-401.17,0.00043,33]
[359512506,1746082247250,-401.17,0.00043,33]
[359512507,1746082247263,-401.17,0.00043,33]
[359512508,1746082247272,-401.17,0.00043,33]
[359512509,1746082247282,-401.17,0.00043,33]
[359512510,1746082247291,-401.17,0.00043,33]
[359512511,1746082247301,-401.17,0.00043,33]
[359512512,1746082247310,-401.17,0.00043,33]
[359512513,1746082247319,-401.17,0.00043,33]
[359512514,1746082247328,-401.17,0.00043,33]
[359512515,1746082247337,-401.17,0.00043,33]
[359512516,1746082247346,-401.17,0.00043,33]
[359512517,1746082247355,-401.17,0.00043,33]
[359512518,1746082247365,-401.17,0.00043,33]
[359512519,1746082247374,-401.17,0.00043,33]
[359512520,1746082247383,-401.17,0.00043,33]
[359512521,1746082247392,-401.17,0.00043,33]
[359512522,1746082247401,-401.17,0.00043,33]
[359512523,1746082247410,-168.611437,0.00043002,2]
[359512524,1746082247419,-150.0,0.0004303,30]
[359512525,1746082247427,-166.21,0.00043084,2]
[359512526,1746082247437,-299.43261,0.00043095,30]
[359512527,1746082247446,-166.21,0.00043095,2]
[359512528,1746082247457,-1000.0,0.00043105,14]
[359512529,1746082247466,-166.21,0.00043106,2]
[359512530,1746082247474,-246.41118831,0.00043108,120]
[359512531,1746082247483,-166.21,0.00043118,2]
[359512532,1746082247493,-166.21,0.00043129,2]
[359512533,1746082247502,-1000.0,0.00043131,14]
[359512534,1746082247513,-166.21,0.00043141,2]
[359512535,1746082247522,-166.21,0.00043152,2]
[359512536,1746082247532,-166.21,0.00043163,2]
[359512537,1746082247542,-150.0,0.00043173,30]
[359512538,1746082247551,-166.21,0.00043175,2]
[359512539,1746082247560,-166.21,0.00043186,2]
[359512540,1746082247569,-166.21,0.00043197,2]
[359512541,1746082247578,-39380.62,0.000432,60]
[359512542,1746082247587,-359.56382,0.000432,5]
[359512543,1746082247597,-300.0,0.000432,7]
[359512544,1746082247606,-300.0,0.000432,7]
[359512545,1746082247615,-300.0,0.000432,7]
[359512546,1746082247625,-300.0,0.000432,7]
[359512547,1746082247634,-309.35126671,0.000432,7]
[359512548,1746082247643,-35149.97,0.000432,2]
[359512549,1746082247652,-1000.0,0.00043201,14]
[359512550,1746082247661,-166.21,0.00043209,2]
[359512551,1746082247671,-166.21,0.0004322,2]
[359512552,1746082247807,-200.0,0.00043231,7]
[359512553,1746082247817,-200.0,0.00043231,7]
[359512554,1746082247827,-166.21,0.00043231,2]
[359512555,1746082247836,-166.21,0.00043243,2]
[359512556,1746082247845,-215.0,0.0004325,2]
[359512557,1746082247855,-207.0,0.0004325,30]
[359512558,1746082247864,-211.0,0.0004325,2]
[359512559,1746082247875,-208.0,0.0004325,2]
[359512560,1746082247884,-166.21,0.00043254,2]
[359512561,1746082247893,-166.21,0.00043265,2]
[359512562,1746082247902,-166.21,0.00043277,2]
[359512563,1746082247912,-166.21,0.00043288,2]
[359512564,1746082247921,-299.43261,0.00043295,30]
[359512565,1746082247930,-166.21,0.00043299,2]
[359512566,1746082247942,-5679.00695051,0.00043314,48]
[359512567,1746082247951,-151.0,0.00043314,14]
[359512568,1746082247961,-151.0,0.00043314,14]
[359512569,1746082247970,-151.0,0.00043314,14]
[359512570,1746082247981,-198.713687,0.00043314,14]
[359512571,1746082247991,-198.713687,0.00043314,14]
[359512572,1746082248000,-164.189359,0.00043314,14]
[359512573,1746082248011,-366.55894193,0.00043315,14]
[359512574,1746082248025,-4763.33526,0.00043315,30]
[359512575,1746082248034,-150.0,0.00043315,30]
[359512576,1746082248044,-168.611437,0.00043323,60]
[359512577,1746082248055,-1246.52,0.00043398,5]
[359512578,1746082248065,-1249.99,0.000434,5]
[359512579,1746082248075,-1000.0,0.00043447,14]
[359512580,1746082248084,-150.0,0.00043458,30]
[359512581,1746082248093,-200.0,0.00043467,14]
[359512582,1746082248103,-299.43261,0.00043495,30]
[359512583,1746082248113,-1000.0,0.00043596,14]
[359512584,1746082248123,-166.66,0.00043599,2]
[359512585,1746082248132,-1271.44,0.000436,120]
[359512586,1746082248142,-1311.78,0.000436,120]
[359512587,1746082248151,-320.89,0.000436,120]
[359512588,1746082248161,-5690.15,0.000436,14]
[359512589,1746082248170,-257.35,0.000436,120]
[359512590,1746082248179,-150.0,0.000436,30]
[359512591,1746082248190,-150.0,0.00043619,2]
[359512592,1746082248200,-389.3,0.0004363,30]
[359512593,1746082248209,-200.0,0.00043663,7]
[359512594,1746082248219,-200.0,0.00043663,7]
[359512595,1746082248229,-299.43261,0.00043695,30]
[359512596,1746082248238,-160.0,0.000437,72]
[359512597,1746082248248,-455.41445022,0.000437,120]
[359512598,1746082248258,-1314.0,0.00043708,30]
[359512599,1746082248267,-150.0,0.00043743,30]
[359512600,1746082248277,-2000.0,0.000438,2]
[359512601,1746082248287,-2315.08834873,0.0004383,30]
[359512602,1746082248296,-1000.0,0.0004383,14]
[359512603,1746082248306,-450.0,0.00043835,2]
[359512604,1746082248315,-450.0,0.00043835,2]
[359512605,1746082248325,-450.0,0.00043835,2]
[359512606,1746082248334,-450.0,0.00043835,2]
[359512607,1746082248344,-450.0,0.00043835,2]
[359512608,1746082248353,-500.0,0.00043835,31]
[359512609,1746082248362,-504.66367294,0.00043835,31]
[359512610,1746082248372,-287.5586945,0.00043835,15]
[359512611,1746082248381,-500.0,0.00043835,2]
[359512612,1746082248390,-500.0,0.00043835,2]
[359512613,1746082248400,-500.0,0.00043835,2]
[359512614,1746082248409,-500.0,0.00043835,2]
[359512615,1746082248418,-500.0,0.00043835,2]
[359512616,1746082248428,-500.0,0.00043835,2]
[359512617,1746082248437,-500.0,0.00043835,2]
[359512618,1746082248447,-500.0,0.00043835,2]
[359512619,1746082248457,-500.0,0.00043835,2]
[359512620,1746082248467,-500.0,0.00043835,2]
[359512621,1746082248477,-500.0,0.00043835,2]
[359512622,1746082248486,-500.0,0.00043835,2]
[359512623,1746082248496,-500.0,0.00043835,2]
[359512624,1746082248506,-500.0,0.00043835,2]
[359512625,1746082248516,-500.0,0.00043835,2]
[359512626,1746082248526,-622.42034215,0.00043835,2]
[359512627,1746082248536,-500.0,0.00043835,31]
[359512628,1746082248546,-500.0,0.00043835,31]
[359512629,1746082248555,-500.0,0.00043835,31]
[359512630,1746082248565,-315.2097698,0.00043835,31]
[359512631,1746082248575,-500.0,0.00043835,31]
[359512632,1746082248584,-500.0,0.00043835,31]
[359512633,1746082248594,-500.0,0.00043835,31]
[359512634,1746082248603,-500.0,0.00043835,31]
[359512635,1746082248613,-630.63738424,0.00043835,31]
[359512636,1746082248622,-500.0,0.00043835,31]
[359512637,1746082248632,-500.0,0.00043835,31]
[359512638,1746082248641,-500.0,0.00043835,31]
[359512639,1746082248650,-500.0,0.00043835,31]
[359512640,1746082248659,-500.0,0.00043835,31]
[359512641,1746082248668,-500.0,0.00043835,31]
[359512642,1746082248677,-500.0,0.00043835,31]
[359512643,1746082248687,-500.0,0.00043835,31]
[359512644,1746082248696,-500.0,0.00043835,31]
[359512645,1746082248705,-500.0,0.00043835,31]
[359512646,1746082248715,-500.0,0.00043835,31]
[359512647,1746082248724,-357.03972644,0.00043835,31]
[359512648,1746082248734,-500.0,0.00043835,31]
[359512649,1746082248744,-557.14722446,0.00043835,31]
[359512650,1746082248754,-500.0,0.00043835,31]
[359512651,1746082248763,-504.62661682,0.00043835,31]
[359512652,1746082248774,-538.39648351,0.00043835,31]
[359512653,1746082248783,-500.0,0.00043835,20]
[359512654,1746082248793,-181.17,0.00043835,120]
[359512655,1746082248803,-1002.912,0.00043835,2]
[359512656,1746082248812,-408.0016555,0.00043836,10]
[359512657,1746082248822,-176.59,0.00043836,30]
[359512658,1746082248831,-518.69371988,0.00043836,31]
[359512659,1746082248840,-518.69371988,0.00043836,31]
[359512660,1746082248850,-518.69371988,0.00043836,31]
[359512661,1746082248859,-518.69371988,0.00043836,31]
[359512662,1746082248868,-518.69371988,0.00043836,31]
[359512663,1746082248878,-518.69371988,0.00043836,31]
[359512664,1746082248887,-518.69371988,0.00043836,31]
[359512665,1746082248896,-518.69371988,0.00043836,31]
[359512666,1746082248906,-518.69371988,0.00043836,31]
[359512667,1746082248915,-518.69371988,0.00043836,31]
[359512668,1746082248926,-518.69371988,0.00043836,31]
[359512669,1746082248935,-518.69371988,0.00043836,31]
[359512670,1746082248945,-518.69371988,0.00043836,31]
[359512671,1746082248954,-518.69371988,0.00043836,31]
[359512672,1746082248963,-518.69371988,0.00043836,31]
[359512673,1746082248973,-518.69371988,0.00043836,31]
[359512674,1746082248982,-544.62840588,0.00043836,31]
[359512675,1746082248992,-544.62840588,0.00043836,31]
[359512676,1746082249002,-544.62840588,0.00043836,31]
[359512677,1746082249015,-544.62840588,0.00043836,31]
[359512678,1746082249026,-544.62840588,0.00043836,31]
[359512679,1746082249035,-544.62840588,0.00043836,31]
[359512680,1746082249044,-544.62840588,0.00043836,31]
[359512681,1746082249055,-635.39980684,0.00043836,31]
[359512682,1746082249064,-635.39980684,0.00043836,31]
[359512683,1746082249073,-635.39980684,0.00043836,31]
[359512684,1746082249083,-500.0,0.00043836,31]
[359512685,1746082249093,-164.671152,0.00043836,14]
[359512686,1746082249103,-156.014225,0.00043836,14]
[359512687,1746082249113,-151.0,0.00043836,14]
[359512688,1746082249122,-151.0,0.00043836,14]
[359512689,1746082249131,-151.0,0.00043836,14]
[359512690,1746082249141,-157.076841,0.00043836,14]
[359512691,1746082249150,-151.0,0.00043836,14]
[359512692,1746082249159,-151.0,0.00043836,14]
[359512693,1746082249168,-151.0,0.00043836,14]
[359512694,1746082249178,-152.0,0.0004388,7]
[359512695,1746082249187,-150.0,0.00043885,30]
[359512696,1746082249196,-299.43261,0.00043895,30]
[359512697,1746082249206,-2000.0,0.000439,30]
[359512698,1746082249215,-2000.0,0.000439,30]
[359512699,1746082249224,-2000.0,0.000439,30]
[359512700,1746082249234,-2000.0,0.000439,30]
[359512701,1746082249243,-2000.0,0.000439,30]
[359512702,1746082249253,-2000.0,0.000439,30]
[359512703,1746082249263,-2000.0,0.000439,30]
[359512704,1746082249273,-2000.0,0.000439,30]
[359512705,1746082249293,-2213.1174,0.000439,30]
[359512706,1746082249303,-2000.0,0.000439,30]
[359512707,1746082249313,-500.0,0.00043951,120]
[359512708,1746082249323,-601.77631564,0.00043951,120]
[359512709,1746082249333,-785.7,0.00043991,2]
[359512710,1746082249343,-5000.0,0.00044,120]
[359512711,1746082249353,-1391.40983245,0.00044,10]
[359512712,1746082249363,-152.0,0.00044,30]
[359512713,1746082249373,-153.70925441,0.00044,60]
[359512714,1746082249383,-899.99999908,0.00044,45]
[359512715,1746082249393,-98000.0,0.00044,15]
[359512716,1746082249403,-150.0,0.00044028,30]
[359512717,1746082249412,-923.0,0.00044082,2]
[359512718,1746082249422,-295.183,0.00044082,2]
[359512719,1746082249431,-876.0,0.00044082,2]
[359512720,1746082249441,-153.0,0.00044082,2]
[359512721,1746082249450,-4003.0,0.00044082,2]
[359512722,1746082249461,-878.0,0.00044082,2]
[359512723,1746082249471,-200.0,0.000441,7]
[359512724,1746082249481,-192.09798096,0.000441,7]
[359512725,1746082249491,-450.0,0.00044109,2]
[359512726,1746082249501,-450.0,0.00044109,2]
[359512727,1746082249512,-450.0,0.00044109,2]
[359512728,1746082249522,-450.0,0.00044109,2]
[359512729,1746082249532,-450.0,0.00044109,2]
[359512730,1746082249542,-310.79999712,0.00044109,20]
[359512731,1746082249552,-1314.0,0.00044158,30]
[359512732,1746082249562,-150.0,0.0004417,30]
[359512733,1746082249573,-5679.00695051,0.00044176,50]
[359512734,1746082249583,-299.43261,0.00044295,30]
[359512735,1746082249593,-150.0,0.00044313,30]
[359512736,1746082249602,-1000.0,0.00044352,14]
[359512737,1746082249612,-450.0,0.00044383,2]
[359512738,1746082249622,-450.0,0.00044383,2]
[359512739,1746082249632,-450.0,0.00044383,2]
[359512740,1746082249641,-450.0,0.00044383,2]
[359512741,1746082249811,-450.0,0.00044383,2]
[359512742,1746082249821,-500.0,0.00044383,120]
[359512743,1746082249831,-500.0,0.00044383,120]
[359512744,1746082249840,-500.0,0.00044383,120]
[359512745,1746082249850,-500.0,0.00044383,120]
[359512746,1746082249859,-500.0,0.00044383,120]
[359512747,1746082249869,-500.0,0.00044383,120]
[359512748,1746082249879,-500.0,0.00044383,120]
[359512749,1746082249888,-915.0,0.00044383,120]
[359512750,1746082249898,-500.0,0.00044383,120]
[359512751,1746082249908,-500.0,0.00044383,120]
[359512752,1746082249917,-500.0,0.00044383,120]
[359512753,1746082249926,-500.0,0.00044383,120]
[359512754,1746082249936,-500.0,0.00044383,120]
[359512755,1746082249945,-500.0,0.00044383,120]
[359512756,1746082249955,-500.0,0.00044383,120]
[359512757,1746082249964,-500.0,0.00044383,120]
[359512758,1746082249976,-500.0,0.00044383,120]
[359512759,1746082249986,-500.0,0.00044383,120]
[359512760,1746082249997,-500.0,0.00044383,120]
[359512761,1746082250008,-500.0,0.00044383,120]
[359512762,1746082250020,-500.0,0.00044383,120]
[359512763,1746082250029,-500.0,0.00044383,120]
[359512764,1746082250038,-500.0,0.00044383,120]
[359512765,1746082250048,-500.0,0.00044383,120]
[359512766,1746082250059,-500.0,0.00044383,120]
[359512767,1746082250068,-500.0,0.00044383,120]
[359512768,1746082250077,-500.0,0.00044383,120]
[359512769,1746082250087,-500.0,0.00044383,120]
[359512770,1746082250098,-500.0,0.00044383,120]
[359512771,1746082250107,-500.0,0.00044383,120]
[359512772,1746082250117,-500.0,0.00044383,120]
[359512773,1746082250126,-500.0,0.00044383,120]
[359512774,1746082250135,-500.0,0.00044383,120]
[359512775,1746082250144,-500.0,0.00044383,120]
[359512776,1746082250154,-500.0,0.00044383,120]
[359512777,1746082250164,-500.0,0.00044383,120]
[359512778,1746082250173,-500.0,0.00044383,120]
[359512779,1746082250183,-500.0,0.00044383,120]
[359512780,1746082250193,-500.0,0.00044383,120]
[359512781,1746082250202,-500.0,0.00044383,120]
[359512782,1746082250212,-500.0,0.00044383,120]
[359512783,1746082250221,-500.0,0.00044383,120]
[359512784,1746082250230,-500.0,0.00044383,120]
[359512785,1746082250244,-500.0,0.00044383,120]
[359512786,1746082250253,-500.0,0.00044383,120]
[359512787,1746082250263,-500.0,0.00044383,120]
[359512788,1746082250272,-500.0,0.00044383,120]
[359512789,1746082250282,-500.0,0.00044383,120]
[359512790,1746082250291,-500.0,0.00044383,120]
[359512791,1746082250300,-500.0,0.00044383,120]
[359512792,1746082250310,-500.0,0.00044383,120]
[359512793,1746082250319,-991.0,0.00044383,120]
[359512794,1746082250329,-500.0,0.00044383,120]
[359512795,1746082250338,-150.0,0.00044383,2]
[359512796,1746082250348,-500.0,0.00044383,120]
[359512797,1746082250358,-498.98551833,0.0004439,120]
[359512798,1746082250367,-3600.0,0.000444,2]
[359512799,1746082250377,-5690.15,0.000444,14]
[359512800,1746082250389,-150.0,0.00044412,2]
[359512801,1746082250399,-215.0,0.0004442,30]
[359512802,1746082250409,-211.0,0.0004442,30]
[359512803,1746082250418,-207.0,0.0004442,30]
[359512804,1746082250428,-208.0,0.0004442,30]
[359512805,1746082250437,-262.52266712,0.0004444,120]
[359512806,1746082250446,-151.0,0.00044443,14]
[359512807,1746082250455,-151.0,0.00044443,14]
[359512808,1746082250464,-151.0,0.00044443,14]
[359512809,1746082250474,-150.0,0.00044455,30]
[359512810,1746082250483,-299.43261,0.00044495,30]
[359512811,1746082250493,-500.0,0.00044499,120]
[359512812,1746082250503,-5000.0,0.000445,120]
[359512813,1746082250514,-30000.0,0.000445,2]
[359512814,1746082250524,-151.0,0.000445,14]
[359512815,1746082250533,-1000.0,0.00044527,14]
[359512816,1746082250543,-150.0,0.0004459,2]
[359512817,1746082250553,-1650.56557561,0.00044593,120]
[359512818,1746082250563,-500.0,0.00044595,120]
[359512819,1746082250572,-500.0,0.00044595,120]
[359512820,1746082250581,-500.0,0.00044595,120]
[359512821,1746082250591,-500.0,0.00044595,120]
[359512822,1746082250601,-472.43,0.00044595,120]
[359512823,1746082250611,-500.0,0.00044595,120]
[359512824,1746082250620,-500.0,0.00044595,120]
[359512825,1746082250630,-500.0,0.00044595,120]
[359512826,1746082250639,-500.0,0.00044595,120]
[359512827,1746082250649,-500.0,0.00044595,120]
[359512828,1746082250673,-500.0,0.00044595,120]
[359512829,1746082250690,-500.0,0.00044595,120]
[359512830,1746082250710,-500.0,0.00044595,120]
[359512831,1746082250729,-500.0,0.00044595,120]
[359512832,1746082250745,-500.0,0.00044595,120]
[359512833,1746082250765,-500.0,0.00044595,120]
[359512834,1746082250785,-500.0,0.00044595,120]
[359512835,1746082250805,-500.0,0.00044595,120]
[359512836,1746082250824,-500.0,0.00044595,120]
[359512837,1746082250843,-500.0,0.00044595,120]
[359512838,1746082250861,-500.0,0.00044595,120]
[359512839,1746082250875,-500.0,0.00044595,120]
[359512840,1746082250894,-500.0,0.00044595,120]
[359512841,1746082250906,-619.31,0.00044595,120]
[359512842,1746082250923,-150.0,0.00044598,30]
[359512843,1746082250938,-1314.0,0.00044609,30]
[359512844,1746082250953,-150.0,0.00044633,2]
[359512845,1746082250968,-500.0,0.00044657,120]
[359512846,1746082250984,-500.0,0.00044657,120]
[359512847,1746082250999,-450.0,0.00044657,2]
[359512848,1746082251016,-450.0,0.00044657,2]
[359512849,1746082251031,-450.0,0.00044657,2]
[359512850,1746082251045,-450.0,0.00044657,2]
[359512851,1746082251061,-450.0,0.00044657,2]
[359512852,1746082251075,-150.0,0.00044669,14]
[359512853,1746082251092,-299.43261,0.00044695,30]
[359512854,1746082251106,-160.0,0.000447,75]
[359512855,1746082251121,-1061.0,0.000447,7]
[359512856,1746082251139,-1000.0,0.00044701,2]
[359512857,1746082251154,-1427.59988,0.0004471,120]
[359512858,1746082251169,-150.0,0.0004473,2]
[359512859,1746082251184,-150.0,0.0004474,30]
[359512860,1746082251200,-150.0,0.00044783,2]
[359512861,1746082251214,-153.03635294,0.00044789,14]
[359512862,1746082251227,-150.0,0.00044789,2]
[359512863,1746082251242,-150.0,0.00044851,2]
[359512864,1746082251258,-150.0,0.00044852,2]
[359512865,1746082251273,-150.0,0.00044861,2]
[359512866,1746082251287,-150.0,0.00044875,2]